fUST/lending_fUST_20260420
["ID","MTS","AMOUNT","RATE_DAILY","PERIOD"]
[420846012,1776628249474,-342.702099,0.00019178,2]
[420846013,1776628249485,-500.0,0.00019178,2]
[420846014,1776628249494,-342.702099,0.00019178,2]
[420846015,1776628249503,-342.702099,0.00019178,2]
[420846016,1776628249513,-342.702099,0.00019178,2]
[420846017,1776628249522,-342.702099,0.00019178,2]
[420846018,1776628249531,-342.702099,0.00019178,2]
[420846019,1776628249539,-342.702099,0.00019178,2]
[420846020,1776628249549,-342.702099,0.00019178,2]
[420846021,1776628249558,-342.702099,0.00019178,2]
[420846022,1776628249567,-342.702099,0.00019178,2]
[420846023,1776628249576,-342.702099,0.00019178,2]
[420846024,1776628249585,-342.702099,0.00019178,2]
[420846025,1776628249595,-342.702099,0.00019178,2]
[420846026,1776628249604,-342.702099,0.00019178,2]
[420846027,1776628249614,-500.0,0.00019178,2]
[420846028,1776628249625,-3251.37,0.00019178,2]
[420846029,1776628249635,-342.702099,0.00019178,2]
[420846030,1776628249644,-342.702099,0.00019178,2]
[420846031,1776628249655,-342.702099,0.00019178,2]
[420846032,1776628249665,-342.702099,0.00019178,2]
[420846033,1776628249675,-342.702103,0.00019178,2]
[420846034,1776628249685,-858.54,0.00019178,2]
[420846035,1776628249695,-500.0,0.00019178,2]
[420846036,1776628249705,-500.0,0.00019178,2]
[420846037,1776628249715,-500.0,0.00019178,2]
[420846038,1776628249724,-500.0,0.00019178,2]
[420846039,1776628249734,-500.0,0.00019178,2]
[420846040,1776628249744,-500.0,0.00019178,2]
[420846041,1776628249754,-512.73147611,0.00019178,2]
[420846042,1776628249764,-500.0,0.00019178,2]
[420846043,1776628249774,-647.6,0.00019178,2]
[420846044,1776628249783,-1539.63,0.00019178,2]
[420846045,1776628249792,-528.7127405,0.00019178,2]
[420846046,1776628249802,-500.0,0.00019178,2]
[420846047,1776628249811,-500.0,0.00019178,2]
[420846048,1776628249820,-500.0,0.00019178,2]
[420846049,1776628249830,-500.0,0.00019178,2]
[420846050,1776628249839,-500.0,0.00019178,2]
[420846051,1776628249851,-500.0,0.00019178,2]
[420846052,1776628249860,-1558.77,0.00019178,2]
[420846053,1776628249870,-500.0,0.00019178,2]
[420846054,1776628249879,-500.0,0.00019178,2]
[420846055,1776628249889,-232.89753434,0.00019178,2]
[420846056,1776628249898,-500.0,0.00019178,2]
[420846057,1776628249908,-412.81585882,0.00019178,2]
[420846058,1776628249917,-500.0,0.00019178,2]
[420846059,1776628249926,-314.25861163,0.00019178,2]
[420846060,1776628249936,-500.0,0.00019178,2]
[420846061,1776628249949,-500.0,0.00019178,2]
[420846062,1776628249958,-500.0,0.00019178,2]
[420846063,1776628249967,-500.0,0.00019178,2]
[420846064,1776628249976,-1228.31,0.00019178,2]
[420846065,1776628249985,-500.0,0.00019178,2]
[420846066,1776628249994,-500.0,0.00019178,2]
[420846067,1776628250004,-500.0,0.00019178,2]
[420846068,1776628250013,-1176.91,0.00019178,2]
[420846069,1776628250023,-500.0,0.00019178,2]
[420846070,1776628250032,-1142.69,0.00019178,2]
[420846071,1776628250041,-500.0,0.00019178,2]
[420846072,1776628250051,-304.16612615,0.00019178,2]
[420846073,1776628250060,-500.0,0.00019178,2]
[420846074,1776628250070,-500.0,0.00019178,2]
[420846075,1776628250079,-500.0,0.00019178,2]
[420846076,1776628250088,-500.0,0.00019178,2]
[420846077,1776628250098,-506.23017057,0.00019178,2]
[420846078,1776628250107,-887.24,0.00019178,2]
[420846079,1776628250117,-492.29504129,0.00019178,2]
[420846080,1776628250126,-401.04183867,0.00019178,2]
[420846081,1776628250136,-500.0,0.00019178,2]
[420846082,1776628250145,-500.0,0.00019178,2]
[420846083,1776628250154,-500.0,0.00019178,2]
[420846084,1776628250163,-500.0,0.00019178,2]
[420846085,1776628250173,-932.54,0.00019178,2]
[420846086,1776628250182,-500.0,0.00019178,2]
[420846087,1776628250192,-305.60107559,0.00019178,2]
[420846088,1776628250201,-500.0,0.00019178,2]
[420846089,1776628250211,-408.63217546,0.00019178,2]
[420846090,1776628250221,-500.0,0.00019178,2]
[420846091,1776628250230,-504.48721322,0.00019178,2]
[420846092,1776628250240,-512.18554793,0.00019178,2]
[420846093,1776628250249,-500.0,0.00019178,2]
[420846094,1776628250259,-500.0,0.00019178,2]
[420846095,1776628250268,-500.0,0.00019178,2]
[420846096,1776628250277,-500.0,0.00019178,2]
[420846097,1776628250286,-500.0,0.00019178,2]
[420846098,1776628250295,-500.0,0.00019178,2]
[420846099,1776628250304,-500.0,0.00019178,2]
[420846100,1776628250314,-1390.48,0.00019178,2]
[420846101,1776628250323,-507.98813732,0.00019178,2]
[420846102,1776628250333,-500.0,0.00019178,2]
[420846103,1776628250342,-1840.11,0.00019178,2]
[420846104,1776628250351,-363.89873609,0.00019178,2]
[420846105,1776628250360,-682.23,0.00019178,2]
[420846106,1776628250370,-482.95059004,0.00019178,2]
[420846107,1776628250379,-500.0,0.00019178,2]
[420846108,1776628250388,-500.0,0.00019178,2]
[420846109,1776628250399,-500.0,0.00019178,2]
[420846110,1776628250408,-1658.37,0.00019178,2]
[420846111,1776628250417,-6818.96,0.00019178,2]
[420846112,1776628250426,-500.0,0.00019178,2]
[420846113,1776628250435,-532.1930208,0.00019178,2]
[420846114,1776628250445,-510.84945824,0.00019178,2]
[420846115,1776628250455,-1149.41,0.00019178,2]
[420846116,1776628250464,-881.25,0.00019178,2]
[420846117,1776628250473,-500.0,0.00019178,2]
[420846118,1776628250483,-292.2387375,0.00019178,2]
[420846119,1776628250491,-468.70345672,0.00019178,2]
[420846124,1776628920228,-5.66911589,0.00013425,2]
[420846162,1776629432729,-1705.348949,0.0001274,2]
[420846163,1776629432740,-1770.989025,0.0001274,2]
[420846164,1776629432752,-1523.662026,0.0001274,2]
[420846165,1776629432762,-201.112974,0.00012869,2]
[420846282,1776629441202,-947.887026,0.00012869,2]
[420846283,1776629441213,-587.0,0.0001287,2]
[420846284,1776629441222,-1913.26663561,0.00013,2]
[420846302,1776629443987,-5000.0,0.0001274,2]
[420846303,1776629443996,-24785.676062,0.00013,2]
[420846304,1776629444095,-6373.22484996,0.00013,2]
[420846317,1776629447280,-5886.55232403,0.00013,2]
[420846379,1776630546144,-803.31848514,0.00011523,2]
[420846380,1776630546166,-508.0,0.00011523,2]
[420846381,1776630546187,-408.59432836,0.00011639,2]
[420846407,1776630631876,-4101.66723652,0.000111,2]
[420846409,1776630631886,-300.0,0.00012999,2]
[420846411,1776630631895,-10346.90062627,0.00013,2]
[420846413,1776630631907,-5722.21950213,0.00013,2]
[420846415,1776630631916,-175.33402417,0.0001343,7]
[420846417,1776630631925,-200.53658822,0.0001343,7]
[420846419,1776630631934,-500.0,0.0001343,7]
[420846421,1776630631944,-500.0,0.0001343,7]
[420846423,1776630631953,-500.0,0.0001343,7]
[420846425,1776630631962,-102.7944921,0.0001343,7]
[420846428,1776630631980,-397.2055079,0.0001343,7]
[420846430,1776630631989,-267.8444921,0.0001343,7]
[420846432,1776630631999,-232.1555079,0.0001343,7]
[420846434,1776630632008,-500.0,0.0001343,7]
[420846436,1776630632018,-500.0,0.0001343,7]
[420846438,1776630632026,-500.0,0.0001343,7]
[420846440,1776630632036,-591.58803055,0.0001343,7]
[420846442,1776630632045,-500.0,0.0001343,7]
[420846444,1776630632054,-500.0,0.0001343,7]
[420846446,1776630632062,-484.93646155,0.0001343,7]
[420846448,1776630632074,-15.06353845,0.0001343,7]
[420846450,1776630632083,-500.0,0.0001343,7]
[420846452,1776630632093,-500.0,0.0001343,7]
[420846454,1776630632102,-640.21634064,0.0001343,7]
[420846456,1776630632111,-500.0,0.0001343,7]
[420846458,1776630632120,-500.0,0.0001343,7]
[420846460,1776630632129,-500.0,0.0001343,7]
[420846462,1776630632139,-500.0,0.0001343,7]
[420846464,1776630632149,-227.25788402,0.0001343,7]
[420846466,1776630632158,-229.9645,0.00013599,2]
[420846468,1776630632167,-400.0,0.0001366,7]
[420846470,1776630632177,-400.0,0.0001366,7]
[420846472,1776630632187,-400.0,0.0001366,7]
[420846474,1776630632196,-400.0,0.0001366,7]
[420846476,1776630632206,-400.0,0.0001366,7]
[420846478,1776630632215,-400.0,0.0001366,7]
[420846480,1776630632226,-400.0,0.0001366,7]
[420846482,1776630632235,-400.0,0.0001366,7]
[420846484,1776630632244,-341.57,0.0001366,7]
[420846486,1776630632254,-152.0,0.0001366,7]
[420846488,1776630632263,-1000.0,0.00013699,2]
[420846490,1776630632272,-400.0,0.00013704,7]
[420846492,1776630632281,-400.0,0.00013704,7]
[420846494,1776630632290,-400.0,0.00013704,7]
[420846496,1776630632300,-400.0,0.00013704,7]
[420846498,1776630632309,-400.0,0.00013704,7]
[420846500,1776630632318,-400.0,0.00013704,7]
[420846502,1776630632327,-400.0,0.00013704,7]
[420846504,1776630632337,-400.0,0.00013704,7]
[420846506,1776630632346,-400.0,0.00013704,7]
[420846508,1776630632355,-400.0,0.00013704,7]
[420846510,1776630632364,-400.0,0.00013704,7]
[420846512,1776630632373,-400.0,0.00013704,7]
[420846514,1776630632382,-400.0,0.00013704,7]
[420846516,1776630632391,-400.0,0.00013704,7]
[420846518,1776630632400,-400.0,0.00013704,7]
[420846520,1776630632409,-197.75,0.00013704,7]
[420846522,1776630632418,-152.0,0.00013704,7]
[420846524,1776630632427,-152.0,0.00013704,7]
[420846526,1776630632436,-177.0,0.00013817,2]
[420846528,1776630632445,-300.0,0.00013832,2]
[420846530,1776630632455,-300.0,0.00013832,2]
[420846532,1776630632464,-300.0,0.00013832,2]
[420846534,1776630632473,-300.0,0.00013832,2]
[420846536,1776630632482,-300.0,0.00013832,2]
[420846538,1776630632491,-300.0,0.00013832,2]
[420846540,1776630632500,-300.0,0.00013832,2]
[420846541,1776630632510,-300.0,0.00013832,2]
[420846542,1776630632519,-300.0,0.00013832,2]
[420846543,1776630632528,-300.0,0.00013832,2]
[420846544,1776630632537,-300.0,0.00013832,2]
[420846545,1776630632546,-300.0,0.00013832,2]
[420846546,1776630632556,-300.0,0.00013832,2]
[420846547,1776630632566,-300.0,0.00013832,2]
[420846548,1776630632575,-300.0,0.00013832,2]
[420846549,1776630632585,-400.0,0.00013835,7]
[420846550,1776630632594,-400.0,0.00013835,7]
[420846551,1776630632604,-400.0,0.00013835,7]
[420846552,1776630632614,-400.0,0.00013835,7]
[420846553,1776630632623,-400.0,0.00013835,7]
[420846554,1776630632633,-400.0,0.00013835,7]
[420846555,1776630632642,-400.0,0.00013835,7]
[420846556,1776630632651,-400.0,0.00013835,7]
[420846557,1776630632660,-400.0,0.00013835,7]
[420846558,1776630632670,-400.0,0.00013835,7]
[420846559,1776630632680,-400.0,0.00013835,7]
[420846560,1776630632690,-400.0,0.00013835,7]
[420846561,1776630632699,-400.0,0.00013835,7]
[420846562,1776630632708,-400.0,0.00013835,7]
[420846563,1776630632718,-400.0,0.00013835,7]
[420846564,1776630632728,-400.0,0.00013835,7]
[420846565,1776630632737,-400.0,0.00013835,7]
[420846566,1776630632747,-400.0,0.00013835,7]
[420846567,1776630632756,-400.0,0.00013835,7]
[420846568,1776630632766,-368.54,0.00013835,7]
[420846569,1776630632775,-152.0,0.00013835,7]
[420846570,1776630632785,-152.0,0.00013835,7]
[420846571,1776630632794,-152.0,0.00013835,7]
[420846572,1776630632804,-500.0,0.000139,2]
[420846573,1776630632813,-500.0,0.000139,2]
[420846574,1776630632822,-477.69802169,0.000139,2]
[420846575,1776630632832,-500.0,0.000139,2]
[420846576,1776630632843,-500.0,0.000139,2]
[420846577,1776630632852,-600.0,0.00014108,2]
[420846578,1776630632862,-420.0,0.00014256,2]
[420846579,1776630632872,-495.82669906,0.00014448,2]
[420846580,1776630632881,-1000.0,0.00014448,2]
[420846581,1776630632891,-500.0,0.00014448,2]
[420846582,1776630632900,-1500.0,0.00014996,2]
[420846583,1776630632910,-628.053173,0.00015249,2]
[420846584,1776630632919,-251.6507427,0.00015249,2]
[420846585,1776630632928,-720.0,0.00015518,2]
[420846586,1776630632937,-10000.0,0.00015541,2]
[420846587,1776630632947,-500.0,0.00015544,2]
[420846588,1776630632956,-204.0,0.00015817,2]
[420846589,1776630632965,-709.5539128,0.00016739,2]
[420846590,1776630632975,-200.73,0.00016756,7]
[420846591,1776630632984,-628.053173,0.0001691,2]
[420846592,1776630632994,-251.6507427,0.0001691,2]
[420846594,1776630633003,-864.0,0.0001707,2]
[420846596,1776630633011,-231.0,0.00017816,2]
[420846598,1776630633020,-537.6845,0.00017881,2]
[420846600,1776630633029,-2150.738,0.00017881,2]
[420846602,1776630633039,-739.0,0.00017916,2]
[420846604,1776630633048,-184.0,0.00017916,2]
[420846606,1776630633057,-166.24,0.00017928,7]
[420846608,1776630633067,-301.41433906,0.00017936,2]
[420846610,1776630633076,-318.9,0.00018241,2]
[420846612,1776630633085,-2230.315306,0.00018429,2]
[420846614,1776630633094,-318.9,0.00018545,2]
[420846616,1776630633103,-628.053173,0.00018571,2]
[420846618,1776630633117,-251.6507427,0.00018571,2]
[420846620,1776630633127,-217.856,0.000187,2]
[420846622,1776630633136,-325.2970195,0.00018741,2]
[420846624,1776630633146,-1000.0,0.00018777,2]
[420846626,1776630633157,-433.37786679,0.00018794,2]
[420846628,1776630633167,-318.9,0.00018849,2]
[420846630,1776630633176,-2312.83697232,0.00018977,2]
[420846632,1776630633186,-344.0,0.00019,2]
[420846634,1776630633195,-223.0,0.00019,2]
[420846636,1776630633204,-473.0,0.00019,2]
[420846638,1776630633213,-674.0,0.00019,2]
[420846640,1776630633222,-514.0,0.00019,2]
[420846642,1776630633231,-159.0,0.00019,2]
[420846644,1776630633240,-168.0,0.00019,2]
[420846646,1776630633249,-538.9862348,0.0001909,30]
[420846648,1776630633258,-966.8373997,0.0001909,30]
[420846650,1776630633267,-155.0472122,0.0001909,30]
[420846652,1776630633276,-1000.0,0.000191,2]
[420846654,1776630633285,-1000.0,0.000191,3]
[420846656,1776630633294,-200.73,0.000191,7]
[420846658,1776630633303,-318.9,0.00019154,2]
[420846660,1776630633312,-500.0,0.00019173,2]
[420846662,1776630633322,-500.0,0.00019173,2]
[420846664,1776630633331,-500.0,0.00019173,2]
[420846666,1776630633340,-500.0,0.00019173,2]
[420846667,1776630633350,-576.816,0.00019177,2]
[420846669,1776630633359,-442.1727185,0.00019177,2]
[420846671,1776630633369,-201.48652591,0.00019177,2]
[420846673,1776630633378,-500.0,0.00019177,2]
[420846675,1776630633387,-500.0,0.00019177,2]
[420846677,1776630633397,-500.0,0.00019177,2]
[420846679,1776630633406,-214.13711466,0.00019177,2]
[420846681,1776630633415,-500.0,0.00019177,2]
[420846683,1776630633425,-500.0,0.00019177,2]
[420846685,1776630633434,-500.0,0.00019177,2]
[420846687,1776630633443,-500.0,0.00019177,2]
[420846689,1776630633452,-500.0,0.00019177,2]
[420846691,1776630633462,-500.0,0.00019177,2]
[420846693,1776630633471,-500.0,0.00019177,2]
[420846695,1776630633480,-500.0,0.00019177,2]
[420846697,1776630633489,-500.0,0.00019177,2]
[420846699,1776630633498,-500.0,0.00019177,2]
[420846701,1776630633507,-500.0,0.00019177,2]
[420846703,1776630633516,-500.0,0.00019177,2]
[420846705,1776630633526,-500.0,0.00019177,2]
[420846707,1776630633536,-500.0,0.00019177,2]
[420846709,1776630633545,-199.41318145,0.00019177,2]
[420846765,1776630638302,-500.0,0.0001554,2]
[420846766,1776630638311,-328.08200355,0.0001554,2]
[420846767,1776630638320,-161.91799645,0.0001554,2]
[420846768,1776630638335,-338.08200355,0.0001554,2]
[420846769,1776630638345,-500.0,0.0001554,2]
[420846770,1776630638354,-500.0,0.0001554,2]
[420846771,1776630638364,-500.0,0.0001554,2]
[420846772,1776630638374,-500.0,0.0001554,2]
[420846773,1776630638390,-263.07402805,0.0001554,2]
[420846774,1776630638400,-500.0,0.0001554,2]
[420846775,1776630638410,-500.0,0.0001554,2]
[420846776,1776630638419,-288.91857786,0.00018794,2]
[420846777,1776630638429,-300.58681855,0.00019177,2]
[420846778,1776630638438,-1530.8555,0.00019178,2]
[420846779,1776630638448,-331.07419,0.00019178,2]
[420846780,1776630638457,-170.782146,0.00019178,2]
[420846781,1776630638467,-423.80697089,0.00019178,2]
[420846782,1776630638477,-500.0,0.00019178,2]
[420846783,1776630638486,-500.0,0.00019178,2]
[420846784,1776630638496,-500.0,0.00019178,2]
[420846785,1776630638506,-500.0,0.00019178,2]
[420846786,1776630638515,-500.0,0.00019178,2]
[420846787,1776630638524,-500.0,0.00019178,2]
[420846788,1776630638534,-500.0,0.00019178,2]
[420846789,1776630638543,-500.0,0.00019178,2]
[420846790,1776630638553,-500.0,0.00019178,2]
[420846791,1776630638562,-500.0,0.00019178,2]
[420846792,1776630638571,-518.60972104,0.00019178,2]
[420846793,1776630638581,-500.0,0.00019178,2]
[420846794,1776630638590,-2006.96,0.00019178,2]
[420846795,1776630638599,-500.0,0.00019178,2]
[420846796,1776630638608,-500.0,0.00019178,2]
[420846797,1776630638618,-516.42005457,0.00019178,2]
[420846798,1776630638627,-521.42448235,0.00019178,2]
[420846799,1776630638636,-126.70882886,0.00019178,2]
[420846825,1776630643250,-152.0,0.00013707,7]
[420846826,1776630643260,-152.0,0.00013707,7]
[420846827,1776630643270,-33.72830889,0.00018794,2]
[420846828,1776630643283,-255.19026897,0.00018794,2]
[420846829,1776630643294,-373.29117114,0.00019178,2]
[420846830,1776630643303,-500.0,0.00019178,2]
[420846831,1776630643312,-518.93,0.00019178,2]
[420846832,1776630643321,-1785.45,0.00019178,2]
[420846833,1776630643329,-500.0,0.00019178,2]
[420846834,1776630643339,-500.0,0.00019178,2]
[420846835,1776630643348,-191.33973913,0.00019178,2]
[420846836,1776630643357,-512.89795705,0.00019178,2]
[420846837,1776630643366,-500.0,0.00019178,2]
[420846838,1776630643375,-627.57772721,0.00019178,2]
[420846839,1776630643387,-1400.59227279,0.00019178,2]
[420846840,1776630643396,-500.0,0.00019178,2]
[420846841,1776630643405,-500.0,0.00019178,2]
[420846842,1776630643415,-500.0,0.00019178,2]
[420846843,1776630643424,-500.0,0.00019178,2]
[420846844,1776630643434,-500.0,0.00019178,2]
[420846845,1776630643443,-500.0,0.00019178,2]
[420846846,1776630643453,-2036.72,0.00019178,2]
[420846847,1776630643462,-500.0,0.00019178,2]
[420846848,1776630643471,-500.0,0.00019178,2]
[420846849,1776630643481,-500.0,0.00019178,2]
[420846850,1776630643491,-500.0,0.00019178,2]
[420846851,1776630643502,-500.0,0.00019178,2]
[420846852,1776630643511,-500.0,0.00019178,2]
[420846853,1776630643521,-502.93990698,0.00019178,2]
[420846855,1776630643532,-319.33056188,0.00019178,2]
[420846857,1776630643543,-500.0,0.00019178,2]
[420846858,1776630643553,-500.0,0.00019178,2]
[420846859,1776630643562,-500.0,0.00019178,2]
[420846860,1776630643572,-500.0,0.00019178,2]
[420846861,1776630643581,-500.0,0.00019178,2]
[420846863,1776630643590,-500.0,0.00019178,2]
[420846864,1776630643600,-500.0,0.00019178,2]
[420846865,1776630643610,-500.0,0.00019178,2]
[420846866,1776630643620,-500.0,0.00019178,2]
[420846867,1776630643629,-500.0,0.00019178,2]
[420846868,1776630643639,-510.19796556,0.00019178,2]
[420846869,1776630643648,-500.0,0.00019178,2]
[420846870,1776630643657,-1961.88,0.00019178,2]
[420846871,1776630643666,-500.0,0.00019178,2]
[420846872,1776630643675,-511.45951906,0.00019178,2]
[420846873,1776630643685,-500.0,0.00019178,2]
[420846874,1776630643694,-500.0,0.00019178,2]
[420846875,1776630643703,-500.0,0.00019178,2]
[420846876,1776630643713,-515.64,0.00019178,2]
[420846877,1776630643722,-518.38170201,0.00019178,2]
[420846878,1776630643731,-500.0,0.00019178,2]
[420846879,1776630643740,-500.0,0.00019178,2]
[420846880,1776630643750,-500.0,0.00019178,2]
[420846881,1776630643759,-184.77931462,0.00019178,2]
[420846882,1776630643772,-315.22068538,0.00019178,2]
[420846883,1776630643782,-500.0,0.00019178,2]
[420846884,1776630643791,-511.30733518,0.00019178,2]
[420846885,1776630643800,-2408.8,0.00019178,2]
[420846886,1776630643810,-500.0,0.00019178,2]
[420846887,1776630643818,-500.0,0.00019178,2]
[420846888,1776630643827,-294.44986772,0.00019178,2]
[420846889,1776630643839,-214.42523596,0.00019178,2]
[420846890,1776630643848,-519.33859023,0.00019178,2]
[420846891,1776630643857,-415.44663181,0.00019178,2]
[420846892,1776630643868,-194.23336819,0.00019178,2]
[420846893,1776630643878,-500.0,0.00019178,2]
[420846894,1776630643887,-500.0,0.00019178,2]
[420846895,1776630643896,-500.0,0.00019178,2]
[420846896,1776630643906,-500.0,0.00019178,2]
[420846897,1776630643915,-500.0,0.00019178,2]
[420846898,1776630643924,-500.0,0.00019178,2]
[420846899,1776630643933,-500.0,0.00019178,2]
[420846900,1776630643942,-500.0,0.00019178,2]
[420846901,1776630643952,-500.0,0.00019178,2]
[420846902,1776630643961,-559.72219602,0.00019178,2]
[420846903,1776630643969,-506.75328962,0.00019178,2]
[420846904,1776630643978,-500.0,0.00019178,2]
[420846905,1776630643987,-500.0,0.00019178,2]
[420846906,1776630643996,-500.0,0.00019178,2]
[420846907,1776630644005,-284.4878304,0.00019178,2]
[420846913,1776630646151,-215.5121696,0.00019178,2]
[420846914,1776630646161,-455.6478304,0.00019178,2]
[420846915,1776630646310,-44.3521696,0.00019178,2]
[420846916,1776630646320,-211.1941604,0.00019178,2]
[420846944,1776630719554,-2722.41588225,0.00013761,2]
[420847404,1776631761203,-518.0,0.00010975,2]
[420847405,1776631761228,-4991.47088025,0.00010976,2]
[420847406,1776631761251,-239.80224273,0.00011087,2]
[420847407,1776631761274,-150.0,0.00011143,2]
[420847408,1776631761297,-300.0,0.00011199,2]
[420847409,1776631761318,-8639.93587702,0.000112,2]
[420847453,1776631832254,-1360.06412298,0.000112,2]
[420847455,1776631832264,-300.0,0.00011423,2]
[420847458,1776631832274,-77.30598839,0.00011423,2]
[420847462,1776631832306,-222.69401161,0.00011423,2]
[420847464,1776631832316,-300.0,0.00011423,2]
[420847466,1776631832326,-300.0,0.00011423,2]
[420847468,1776631832336,-300.0,0.00011423,2]
[420847470,1776631832345,-300.0,0.00011423,2]
[420847472,1776631832356,-300.0,0.00011423,2]
[420847474,1776631832366,-300.0,0.00011423,2]
[420847476,1776631832376,-300.0,0.00011423,2]
[420847478,1776631832386,-300.0,0.00011423,2]
[420847480,1776631832396,-300.0,0.00011423,2]
[420847482,1776631832406,-300.0,0.00011423,2]
[420847484,1776631832416,-300.0,0.00011423,2]
[420847487,1776631832426,-300.0,0.00011423,2]
[420847489,1776631832435,-300.0,0.00011423,2]
[420847491,1776631832445,-94.21110399,0.00013143,2]
[420847571,1776631838455,-82.78889601,0.00013143,2]
[420847573,1776631838464,-1000.0,0.00013699,2]
[420847575,1776631838474,-223.26128762,0.000138,2]
[420847577,1776631838484,-11109.2242355,0.00015,2]
[420847581,1776631838508,-22343.89800738,0.00015,2]
[420847583,1776631838518,-218.94874465,0.00015143,2]
[420847585,1776631838529,-180.167548,0.00017214,2]
[420847587,1776631838539,-221.179,0.00017675,2]
[420847589,1776631838548,-184.0,0.00017675,2]
[420847591,1776631838558,-1624.91773079,0.0001816,2]
[420847593,1776631838567,-180.167548,0.00018421,2]
[420847595,1776631838577,-212.6,0.00018424,2]
[420847597,1776631838586,-212.6,0.00018712,2]
[420847600,1776631838595,-151.0,0.00018823,2]
[420847602,1776631838605,-8225.25532568,0.00018978,2]
[420847604,1776631838614,-178381.73943921,0.00018978,2]
[420847606,1776631838626,-38812.55280227,0.00018978,2]
[420847784,1776631840892,-475.5589574,0.00018978,2]
[420847817,1776631843672,-1650.95049077,0.00018978,2]
[420847820,1776631843684,-3928.60947472,0.00018978,2]
[420847824,1776631843726,-2943.40244164,0.00018978,2]
[420848098,1776631846591,-3348.65498217,0.00018978,2]
[420848104,1776631846699,-3173.85256549,0.00018978,2]
[420849183,1776632807120,-239.80224273,0.00012768,2]
[420849184,1776632807145,-2626.51372887,0.00012897,2]
[420849185,1776632807169,-509.0,0.00012897,2]
[420849186,1776632807191,-300.0,0.00013026,2]
[420849187,1776632807219,-5000.0,0.00013027,2]
[420849188,1776632807243,-150.0,0.00013226,2]
[420849189,1776632807267,-975.0,0.00013291,2]
[420849190,1776632807290,-536.39046708,0.00013699,2]
[420849214,1776633032408,-4240.55941701,0.00013158,2]
[420849221,1776633032461,-759.44058299,0.00013158,2]
[420849223,1776633032470,-408.59432836,0.00013291,2]
[420849225,1776633032481,-508.0,0.00013425,2]
[420849227,1776633032490,-150.0,0.00013494,2]
[420849229,1776633032500,-1000.0,0.00013699,2]
[420849231,1776633032513,-300.0,0.00013971,2]
[420849233,1776633032522,-300.0,0.00013972,2]
[420849235,1776633032532,-300.0,0.00013972,2]
[420849237,1776633032543,-300.0,0.00013972,2]
[420849239,1776633032552,-300.0,0.00013972,2]
[420849241,1776633032562,-300.0,0.00013972,2]
[420849243,1776633032572,-300.0,0.00013972,2]
[420849245,1776633032581,-300.0,0.00013972,2]
[420849247,1776633032590,-300.0,0.00013972,2]
[420849248,1776633032600,-300.0,0.00013972,2]
[420849250,1776633032609,-300.0,0.00013972,2]
[420849251,1776633032619,-300.0,0.00013972,2]
[420849252,1776633032628,-300.0,0.00013972,2]
[420849254,1776633032637,-300.0,0.00013972,2]
[420849256,1776633032646,-300.0,0.00013972,2]
[420849257,1776633032655,-300.0,0.00013972,2]
[420849258,1776633032664,-420.0,0.00015306,2]
[420849259,1776633032673,-280.56848977,0.00015494,2]